[Event "*** Titled Tuesday Blitz"]
[Site "Chess.com"]
[Date "2021.02.02"]
[Round "3"]
[White "CraiggoryC"]
[Black "SergeyShtyka"]
[Result "1/2-1/2"]
[WhiteElo "2134"]
[BlackElo "2471"]
[TimeControl "180+1"]
[EndTime "10:31:34 PST"]
[Termination "Game drawn by repetition"]

1. e4 {[%clk 0:03:00.9]} 1... c5 {[%clk 0:02:59.7]} 2. Nf3 {[%clk 0:03:00.2]}
2... Nc6 {[%clk 0:03:00]} 3. d4 {[%clk 0:03:00.7]} 3... cxd4 {[%clk 0:03:00.4]}
4. Nxd4 {[%clk 0:03:01.6]} 4... Nf6 {[%clk 0:03:00.9]} 5. Nc3 {[%clk 0:03:01.9]}
5... e5 {[%clk 0:03:01.3]} 6. Ndb5 {[%clk 0:03:02.5]} 6... h6 {[%clk 0:03:01.4]}
7. Nd5 {[%clk 0:02:39.7]} 7... Nxd5 {[%clk 0:03:01.2]} 8. exd5 {[%clk
0:02:40.6]} 8... a6 {[%clk 0:03:01.4]} 9. Nc3 {[%clk 0:02:37.8]} 9... Nd4 {[%clk
0:03:01.4]} 10. Be3 {[%clk 0:02:37.3]} 10... Nf5 {[%clk 0:03:01.5]} 11. Bd3
{[%clk 0:02:32.4]} 11... d6 {[%clk 0:03:00]} 12. O-O {[%clk 0:02:27.1]} 12... g6
{[%clk 0:03:00]} 13. Qd2 {[%clk 0:02:17.5]} 13... Bg7 {[%clk 0:02:59.1]} 14. f4
{[%clk 0:02:06.9]} 14... Qh4 {[%clk 0:02:05.1]} 15. Rae1 {[%clk 0:01:58.6]}
15... O-O {[%clk 0:02:02.2]} 16. Bxf5 {[%clk 0:01:38.3]} 16... Bxf5 {[%clk
0:02:00.5]} 17. fxe5 {[%clk 0:01:38.9]} 17... Bxe5 {[%clk 0:01:59.5]} 18. Bf4
{[%clk 0:01:38.6]} 18... Bxf4 {[%clk 0:01:41.4]} 19. Rxf4 {[%clk 0:01:28.2]}
19... Qg5 {[%clk 0:01:37.8]} 20. Ne4 {[%clk 0:00:56.8]} 20... Bxe4 {[%clk
0:01:33.6]} 21. Rexe4 {[%clk 0:00:57.7]} 21... Rfe8 {[%clk 0:01:26]} 22. Qd3
{[%clk 0:00:40.6]} 22... Re5 {[%clk 0:01:03.8]} 23. c4 {[%clk 0:00:32.1]} 23...
Rae8 {[%clk 0:01:01.2]} 24. Rxe5 {[%clk 0:00:25.4]} 24... Rxe5 {[%clk
0:00:51.7]} 25. Rf1 {[%clk 0:00:20.5]} 25... Re3 {[%clk 0:00:46.3]} 26. Qd4
{[%clk 0:00:18.8]} 26... Re2 {[%clk 0:00:43.5]} 27. g3 {[%clk 0:00:16.2]} 27...
Qd2 {[%clk 0:00:31.2]} 28. Qxd2 {[%clk 0:00:14.9]} 28... Rxd2 {[%clk 0:00:31.5]}
29. Rf2 {[%clk 0:00:15.6]} 29... Rd4 {[%clk 0:00:28.1]} 30. Rc2 {[%clk
0:00:14.6]} 30... f5 {[%clk 0:00:27.5]} 31. Kf2 {[%clk 0:00:15]} 31... Kf7
{[%clk 0:00:25.7]} 32. Ke3 {[%clk 0:00:15.1]} 32... Re4+ {[%clk 0:00:26.2]} 33.
Kd3 {[%clk 0:00:13.3]} 33... b6 {[%clk 0:00:26.2]} 34. b4 {[%clk 0:00:12.1]}
34... Kf6 {[%clk 0:00:24.9]} 35. a4 {[%clk 0:00:11.6]} 35... Ke5 {[%clk
0:00:24.2]} 36. Re2 {[%clk 0:00:11.8]} 36... Rxe2 {[%clk 0:00:09.8]} 37. Kxe2
{[%clk 0:00:12.1]} 37... g5 {[%clk 0:00:06.3]} 38. Kd3 {[%clk 0:00:11.5]} 38...
f4 {[%clk 0:00:06.7]} 39. gxf4+ {[%clk 0:00:11]} 39... gxf4 {[%clk 0:00:07.6]}
40. Ke2 {[%clk 0:00:10.3]} 40... h5 {[%clk 0:00:07.6]} 41. Kf3 {[%clk
0:00:10.5]} 41... Kf5 {[%clk 0:00:07.9]} 42. h4 {[%clk 0:00:10.2]} 42... Ke5
{[%clk 0:00:08]} 43. Kf2 {[%clk 0:00:09.7]} 43... Kf5 {[%clk 0:00:07.3]} 44. Kf3
{[%clk 0:00:09.4]} 44... Ke5 {[%clk 0:00:07.6]} 45. Kf2 {[%clk 0:00:09.7]} 45...
Kf5 {[%clk 0:00:06.6]} 46. Kf3 {[%clk 0:00:10]} 1/2-1/2

[Event "*** Titled Tuesday Blitz"]
[Site "Chess.com"]
[Date "2021.02.02"]
[Round "3"]
[White "markowskitomasz"]
[Black "A-Fier"]
[Result "0-1"]
[WhiteElo "2623"]
[BlackElo "2857"]
[TimeControl "180+1"]
[EndTime "10:31:35 PST"]
[Termination "A-Fier won on time"]

1. d4 {[%clk 0:03:00.9]} 1... Nf6 {[%clk 0:02:59.6]} 2. Nf3 {[%clk 0:02:55.6]}
2... e6 {[%clk 0:02:59.1]} 3. e3 {[%clk 0:02:55]} 3... b6 {[%clk 0:02:58.3]} 4.
Bd3 {[%clk 0:02:54.2]} 4... Bb7 {[%clk 0:02:58.6]} 5. O-O {[%clk 0:02:54.4]}
5... g6 {[%clk 0:02:58.9]} 6. c4 {[%clk 0:02:50.6]} 6... Bg7 {[%clk 0:02:58.3]}
7. b3 {[%clk 0:02:50.7]} 7... O-O {[%clk 0:02:58]} 8. Nc3 {[%clk 0:02:50]} 8...
d5 {[%clk 0:02:58.1]} 9. cxd5 {[%clk 0:02:49.5]} 9... Nxd5 {[%clk 0:02:52]} 10.
Nxd5 {[%clk 0:02:48.9]} 10... Qxd5 {[%clk 0:02:50.5]} 11. Bb2 {[%clk 0:02:45.1]}
11... c5 {[%clk 0:02:49.7]} 12. Bc4 {[%clk 0:02:08.7]} 12... Qd7 {[%clk
0:02:43.5]} 13. Ne5 {[%clk 0:01:53.4]} 13... Qc7 {[%clk 0:02:36.4]} 14. Rc1
{[%clk 0:01:47]} 14... Nc6 {[%clk 0:02:32.8]} 15. Nf3 {[%clk 0:00:49.7]} 15...
Rfd8 {[%clk 0:02:29.5]} 16. Qe2 {[%clk 0:00:48.9]} 16... cxd4 {[%clk 0:02:02.7]}
17. Nxd4 {[%clk 0:00:44.3]} 17... Nxd4 {[%clk 0:02:02.7]} 18. exd4 {[%clk
0:00:31.5]} 18... Bxd4 {[%clk 0:01:56.9]} 19. Bxd4 {[%clk 0:00:30.2]} 19... Rxd4
{[%clk 0:01:57.8]} 20. Bxe6 {[%clk 0:00:24]} 20... Qe7 {[%clk 0:01:58.2]} 21.
Bg4 {[%clk 0:00:23.8]} 21... Qg5 {[%clk 0:01:56.9]} 22. Bf3 {[%clk 0:00:21]}
22... Rd2 {[%clk 0:01:45.4]} 23. Qe3 {[%clk 0:00:09.3]} 23... Qxe3 {[%clk
0:01:45.5]} 24. fxe3 {[%clk 0:00:10.2]} 24... Bxf3 {[%clk 0:01:46]} 25. Rxf3
{[%clk 0:00:10.4]} 25... Rxa2 {[%clk 0:01:46.7]} 26. Rc7 {[%clk 0:00:10.5]}
26... Rf8 {[%clk 0:01:47.3]} 27. Rf6 {[%clk 0:00:07.5]} 27... Kg7 {[%clk
0:01:46.6]} 28. Rd6 {[%clk 0:00:07.3]} 28... Ra3 {[%clk 0:01:43.2]} 29. Rdd7
{[%clk 0:00:06.8]} 29... Rxb3 {[%clk 0:01:43.3]} 30. Kf2 {[%clk 0:00:07.1]}
30... a5 {[%clk 0:01:42.7]} 31. e4 {[%clk 0:00:07.6]} 31... Rb5 {[%clk
0:01:42.2]} 32. Ke3 {[%clk 0:00:06.6]} 32... a4 {[%clk 0:01:42]} 33. Ra7 {[%clk
0:00:05]} 33... Rb4 {[%clk 0:01:37]} 34. e5 {[%clk 0:00:05.4]} 34... b5 {[%clk
0:01:20.4]} 35. e6 {[%clk 0:00:05.5]} 35... Rb1 {[%clk 0:01:21.1]} 36. Rxf7+
{[%clk 0:00:05.1]} 36... Rxf7 {[%clk 0:01:21.8]} 37. Rxf7+ {[%clk 0:00:05.7]}
37... Kg8 {[%clk 0:01:22.4]} 38. Rb7 {[%clk 0:00:06]} 38... Re1+ {[%clk
0:01:22.9]} 39. Kd2 {[%clk 0:00:06.1]} 39... Rxe6 {[%clk 0:01:23.5]} 40. Rxb5
{[%clk 0:00:06.4]} 40... Ra6 {[%clk 0:01:24.3]} 41. Kc2 {[%clk 0:00:05.7]} 41...
Kg7 {[%clk 0:01:24.4]} 42. Kb2 {[%clk 0:00:05.7]} 42... Kf6 {[%clk 0:01:24.7]}
43. Ka3 {[%clk 0:00:06]} 43... g5 {[%clk 0:01:23.9]} 44. Rc5 {[%clk 0:00:06.2]}
44... Kg6 {[%clk 0:01:23.9]} 45. g4 {[%clk 0:00:05.6]} 45... h5 {[%clk
0:01:19.4]} 46. h3 {[%clk 0:00:04.5]} 46... hxg4 {[%clk 0:01:17.5]} 47. hxg4
{[%clk 0:00:05.4]} 47... Rf6 {[%clk 0:01:17.9]} 48. Kxa4 {[%clk 0:00:04.4]}
48... Rf4+ {[%clk 0:01:18.5]} 49. Kb3 {[%clk 0:00:04.7]} 49... Rxg4 {[%clk
0:01:19.1]} 50. Kc2 {[%clk 0:00:05.2]} 50... Rd4 {[%clk 0:01:19.2]} 51. Rc3
{[%clk 0:00:04.5]} 51... Kh5 {[%clk 0:01:19.1]} 52. Rh3+ {[%clk 0:00:03.3]}
52... Kg4 {[%clk 0:01:18.8]} 53. Rh1 {[%clk 0:00:03.2]} 53... Kf3 {[%clk
0:01:06.8]} 54. Rf1+ {[%clk 0:00:03.1]} 54... Kg2 {[%clk 0:01:05.7]} 55. Rf5
{[%clk 0:00:03.3]} 55... g4 {[%clk 0:01:06.1]} 56. Kc3 {[%clk 0:00:03.7]} 56...
Rd8 {[%clk 0:01:06.5]} 57. Rf4 {[%clk 0:00:01.8]} 57... g3 {[%clk 0:01:06.8]}
58. Rg4 {[%clk 0:00:01.6]} 58... Kh2 {[%clk 0:01:06.1]} 59. Rg7 {[%clk
0:00:01.5]} 59... g2 {[%clk 0:01:06.2]} 60. Rh7+ {[%clk 0:00:02]} 60... Kg1
{[%clk 0:01:06.6]} 61. Rg7 {[%clk 0:00:02.4]} 61... Rh8 {[%clk 0:01:06.7]} 62.
Kd2 {[%clk 0:00:02.5]} 62... Kh1 {[%clk 0:01:07.3]} 0-1

[Event "*** Titled Tuesday Blitz"]
[Site "Chess.com"]
[Date "2021.02.02"]
[Round "3"]
[White "AtabayevSaparmyrat"]
[Black "ChampStan"]
[Result "0-1"]
[WhiteElo "2688"]
[BlackElo "2163"]
[TimeControl "180+1"]
[EndTime "10:31:35 PST"]
[Termination "ChampStan won on time"]

1. e4 {[%clk 0:02:59.3]} 1... e5 {[%clk 0:03:00]} 2. Nf3 {[%clk 0:02:59]} 2...
Nc6 {[%clk 0:02:58.6]} 3. Bb5 {[%clk 0:02:58.2]} 3... Nf6 {[%clk 0:02:57.9]} 4.
O-O {[%clk 0:02:56.7]} 4... Nxe4 {[%clk 0:02:58]} 5. d4 {[%clk 0:02:55.9]} 5...
Nd6 {[%clk 0:02:57.6]} 6. dxe5 {[%clk 0:02:56]} 6... Nxb5 {[%clk 0:02:57.6]} 7.
a4 {[%clk 0:02:56.2]} 7... Nbd4 {[%clk 0:02:57.9]} 8. Nxd4 {[%clk 0:02:56.6]}
8... Nxd4 {[%clk 0:02:58.5]} 9. Qxd4 {[%clk 0:02:57.3]} 9... d5 {[%clk
0:02:59.1]} 10. exd6 {[%clk 0:02:57.6]} 10... Qxd6 {[%clk 0:02:59.3]} 11. Qe4+
{[%clk 0:02:57.9]} 11... Qe6 {[%clk 0:02:59.8]} 12. Qd4 {[%clk 0:02:57.9]} 12...
Qd6 {[%clk 0:03:00]} 13. Qe4+ {[%clk 0:02:54.4]} 13... Qe6 {[%clk 0:03:00.3]}
14. Qf3 {[%clk 0:02:54.5]} 14... Bd6 {[%clk 0:02:33.6]} 15. Nc3 {[%clk 0:02:43]}
15... O-O {[%clk 0:02:32.3]} 16. Bf4 {[%clk 0:02:41.4]} 16... Bxf4 {[%clk
0:02:10.2]} 17. Qxf4 {[%clk 0:02:42.3]} 17... Qc6 {[%clk 0:02:04.6]} 18. Rad1
{[%clk 0:02:20.5]} 18... Be6 {[%clk 0:02:00.9]} 19. Rd4 {[%clk 0:02:06.4]} 19...
Rad8 {[%clk 0:01:43.3]} 20. Rfd1 {[%clk 0:02:06.3]} 20... Rxd4 {[%clk
0:01:42.8]} 21. Rxd4 {[%clk 0:02:07.2]} 21... a6 {[%clk 0:01:42.8]} 22. h4
{[%clk 0:02:05.2]} 22... h6 {[%clk 0:01:40.6]} 23. Rd3 {[%clk 0:01:54.9]} 23...
Qc4 {[%clk 0:01:31.5]} 24. Qxc4 {[%clk 0:01:37.6]} 24... Bxc4 {[%clk 0:01:30.2]}
25. Rd4 {[%clk 0:01:26.4]} 25... Be6 {[%clk 0:01:28.3]} 26. a5 {[%clk
0:01:26.7]} 26... Rb8 {[%clk 0:01:03.2]} 27. Kf1 {[%clk 0:01:10.3]} 27... b6
{[%clk 0:00:58.7]} 28. b3 {[%clk 0:01:06.5]} 28... bxa5 {[%clk 0:00:51]} 29. Ke2
{[%clk 0:01:04.6]} 29... Rb4 {[%clk 0:00:36.5]} 30. Rd8+ {[%clk 0:00:53.4]}
30... Kh7 {[%clk 0:00:36.3]} 31. g3 {[%clk 0:00:54.3]} 31... c5 {[%clk
0:00:31.6]} 32. Kd2 {[%clk 0:00:42.1]} 32... c4 {[%clk 0:00:31.3]} 33. bxc4
{[%clk 0:00:43]} 33... Bxc4 {[%clk 0:00:20]} 34. Rd4 {[%clk 0:00:11.9]} 34...
Be6 {[%clk 0:00:17.8]} 35. Rd6 {[%clk 0:00:11.1]} 35... Bc4 {[%clk 0:00:17.6]}
36. Rd4 {[%clk 0:00:11.4]} 36... Bb5 {[%clk 0:00:17]} 0-1

[Event "*** Titled Tuesday Blitz"]
[Site "Chess.com"]
[Date "2021.02.02"]
[Round "3"]
[White "Tsyhanchuk_Stanislav"]
[Black "ENajer77"]
[Result "1-0"]
[WhiteElo "2439"]
[BlackElo "2627"]
[TimeControl "180+1"]
[EndTime "10:31:36 PST"]
[Termination "Tsyhanchuk_Stanislav won on time"]

1. e4 {[%clk 0:03:00.3]} 1... c6 {[%clk 0:02:59.5]} 2. d4 {[%clk 0:02:59.9]}
2... d5 {[%clk 0:02:59.7]} 3. e5 {[%clk 0:02:59.8]} 3... Bf5 {[%clk 0:02:59.7]}
4. h4 {[%clk 0:02:59.7]} 4... h5 {[%clk 0:02:59]} 5. Bd3 {[%clk 0:02:59.3]} 5...
Bxd3 {[%clk 0:02:58]} 6. Qxd3 {[%clk 0:03:00.2]} 6... Qa5+ {[%clk 0:02:58.2]} 7.
Nd2 {[%clk 0:02:59.8]} 7... e6 {[%clk 0:02:57.4]} 8. Nf3 {[%clk 0:02:57.9]} 8...
Qa6 {[%clk 0:02:53.7]} 9. c4 {[%clk 0:02:57.8]} 9... Ne7 {[%clk 0:02:53.7]} 10.
O-O {[%clk 0:02:56.1]} 10... Nf5 {[%clk 0:02:53.3]} 11. Qc3 {[%clk 0:02:56]}
11... Nd7 {[%clk 0:02:46.5]} 12. b4 {[%clk 0:02:53.4]} 12... dxc4 {[%clk
0:02:40.2]} 13. Nxc4 {[%clk 0:02:54.3]} 13... Nb6 {[%clk 0:02:40.1]} 14. Nxb6
{[%clk 0:02:45.3]} 14... Qxb6 {[%clk 0:02:39.4]} 15. Rb1 {[%clk 0:02:35.3]}
15... Be7 {[%clk 0:02:24.6]} 16. a4 {[%clk 0:02:29.7]} 16... Rd8 {[%clk
0:01:59.6]} 17. Rd1 {[%clk 0:02:17.6]} 17... O-O {[%clk 0:01:39.2]} 18. Ba3
{[%clk 0:02:12.8]} 18... Rd5 {[%clk 0:01:34.7]} 19. b5 {[%clk 0:01:33.5]} 19...
cxb5 {[%clk 0:01:00.8]} 20. Bxe7 {[%clk 0:01:16.9]} 20... Nxe7 {[%clk
0:01:01.7]} 21. Ng5 {[%clk 0:00:58]} 21... Nf5 {[%clk 0:00:47.5]} 22. axb5
{[%clk 0:00:36]} 22... Rxb5 {[%clk 0:00:42.2]} 23. Rxb5 {[%clk 0:00:35.6]} 23...
Qxb5 {[%clk 0:00:42.8]} 24. d5 {[%clk 0:00:33.7]} 24... exd5 {[%clk 0:00:21.9]}
25. e6 {[%clk 0:00:33.6]} 25... fxe6 {[%clk 0:00:19.3]} 26. Nxe6 {[%clk
0:00:26.6]} 26... Re8 {[%clk 0:00:17.8]} 27. Nc7 {[%clk 0:00:13.2]} 27... Qe2
{[%clk 0:00:11.5]} 28. Rb1 {[%clk 0:00:11.5]} 28... Rf8 {[%clk 0:00:07.5]} 29.
Nxd5 {[%clk 0:00:10]} 29... Nxh4 {[%clk 0:00:06.7]} 30. Qd4 {[%clk 0:00:07.2]}
30... Nf5 {[%clk 0:00:05]} 31. Qf4 {[%clk 0:00:05.5]} 31... a6 {[%clk
0:00:02.7]} 32. Rxb7 {[%clk 0:00:03.9]} 32... Qe1+ {[%clk 0:00:03]} 33. Kh2
{[%clk 0:00:04.1]} 33... Qe6 {[%clk 0:00:03.6]} 34. Nc7 {[%clk 0:00:02.6]} 34...
Qg6 {[%clk 0:00:02.1]} 35. Nd5 {[%clk 0:00:02]} 35... Qe6 {[%clk 0:00:01.6]} 36.
Nc7 {[%clk 0:00:02]} 36... Qe7 {[%clk 0:00:01.6]} 37. Ra7 {[%clk 0:00:01.5]} 1-0

[Event "*** Titled Tuesday Blitz"]
[Site "Chess.com"]
[Date "2021.02.02"]
[Round "3"]
[White "lamomiablanca"]
[Black "NMJeevanK"]
[Result "0-1"]
[WhiteElo "2282"]
[BlackElo "2509"]
[TimeControl "180+1"]
[EndTime "10:31:36 PST"]
[Termination "NMJeevanK won by resignation"]

1. e4 {[%clk 0:03:00.9]} 1... e5 {[%clk 0:02:59.7]} 2. Nf3 {[%clk 0:03:00.2]}
2... Nc6 {[%clk 0:03:00.3]} 3. Nc3 {[%clk 0:02:59.9]} 3... Nf6 {[%clk
0:02:59.3]} 4. d4 {[%clk 0:03:00]} 4... exd4 {[%clk 0:03:00.2]} 5. Nxd4 {[%clk
0:03:00.6]} 5... Nxd4 {[%clk 0:03:00.3]} 6. Qxd4 {[%clk 0:02:59.5]} 6... d6
{[%clk 0:03:01.2]} 7. Bf4 {[%clk 0:02:58.4]} 7... Be7 {[%clk 0:03:01.5]} 8.
O-O-O {[%clk 0:02:57.9]} 8... O-O {[%clk 0:03:01.6]} 9. f3 {[%clk 0:02:57.8]}
9... Be6 {[%clk 0:03:01.7]} 10. g4 {[%clk 0:02:57]} 10... Nd7 {[%clk 0:03:00.2]}
11. h4 {[%clk 0:02:53.5]} 11... Bf6 {[%clk 0:03:00.3]} 12. Qd2 {[%clk
0:02:52.9]} 12... a5 {[%clk 0:02:55.8]} 13. g5 {[%clk 0:02:46.5]} 13... Bxc3
{[%clk 0:02:55]} 14. Qxc3 {[%clk 0:02:45.7]} 14... Bxa2 {[%clk 0:02:55.3]} 15.
h5 {[%clk 0:02:20]} 15... f6 {[%clk 0:02:24.6]} 16. h6 {[%clk 0:02:13.2]} 16...
g6 {[%clk 0:02:13.6]} 17. Bc4+ {[%clk 0:02:04.8]} 17... Bxc4 {[%clk 0:02:10.9]}
18. Qxc4+ {[%clk 0:02:05.7]} 18... Kh8 {[%clk 0:02:08.7]} 19. Be3 {[%clk
0:01:38.2]} 19... Ne5 {[%clk 0:02:00.1]} 20. Qc3 {[%clk 0:01:33.8]} 20... fxg5
{[%clk 0:01:54.2]} 21. Bd4 {[%clk 0:01:10.3]} 21... Qe7 {[%clk 0:01:30.5]} 22.
Bxe5+ {[%clk 0:00:55.6]} 22... Qxe5 {[%clk 0:00:57.6]} 23. Qxc7 {[%clk
0:00:53.7]} 23... Rac8 {[%clk 0:00:53.2]} 24. Qxb7 {[%clk 0:00:34.7]} 24... Rb8
{[%clk 0:00:44.7]} 25. Qg7+ {[%clk 0:00:33.3]} 25... Qxg7 {[%clk 0:00:44.3]} 26.
hxg7+ {[%clk 0:00:34.2]} 26... Kxg7 {[%clk 0:00:45]} 27. Rxd6 {[%clk 0:00:33.5]}
27... Rxf3 {[%clk 0:00:45.2]} 28. Rd7+ {[%clk 0:00:33.3]} 28... Kf6 {[%clk
0:00:32.7]} 29. Rhxh7 {[%clk 0:00:20.4]} 29... g4 {[%clk 0:00:33]} 30. Rde7
{[%clk 0:00:13.7]} 30... Rb5 {[%clk 0:00:25.4]} 31. e5+ {[%clk 0:00:10.6]} 31...
Kg5 {[%clk 0:00:17.5]} 32. e6 {[%clk 0:00:09.8]} 32... Rd5 {[%clk 0:00:15.2]}
33. b3 {[%clk 0:00:08.1]} 33... g3 {[%clk 0:00:15.1]} 34. Ref7 {[%clk
0:00:06.8]} 34... g2 {[%clk 0:00:11.5]} 35. Rxf3 {[%clk 0:00:06.8]} 35... g1=Q+
{[%clk 0:00:11.4]} 36. Kb2 {[%clk 0:00:06.6]} 36... Qd4+ {[%clk 0:00:11.9]} 37.
Ka2 {[%clk 0:00:06.7]} 37... Re5 {[%clk 0:00:08.5]} 38. e7 {[%clk 0:00:06.6]}
38... Re1 {[%clk 0:00:07.4]} 39. c3 {[%clk 0:00:02.1]} 39... Qd2+ {[%clk
0:00:07.1]} 40. Ka3 {[%clk 0:00:03]} 40... Qd6+ {[%clk 0:00:07.2]} 41. Ka4
{[%clk 0:00:03.9]} 41... Rxe7 {[%clk 0:00:06.7]} 42. Kxa5 {[%clk 0:00:04.8]}
42... Rxh7 {[%clk 0:00:06.3]} 0-1

[Event "*** Titled Tuesday Blitz"]
[Site "Chess.com"]
[Date "2021.02.02"]
[Round "3"]
[White "Vyacheslav_N"]
[Black "Artem_Sadovsky"]
[Result "0-1"]
[WhiteElo "2380"]
[BlackElo "2572"]
[TimeControl "180+1"]
[EndTime "10:31:37 PST"]
[Termination "Artem_Sadovsky won on time"]

1. e4 {[%clk 0:03:00.9]} 1... g6 {[%clk 0:02:58.7]} 2. d4 {[%clk 0:03:01.1]}
2... Bg7 {[%clk 0:02:59.1]} 3. Nc3 {[%clk 0:03:01.8]} 3... d6 {[%clk 0:02:59]}
4. Bg5 {[%clk 0:03:02]} 4... Nd7 {[%clk 0:02:57.1]} 5. Qd2 {[%clk 0:03:00.7]}
5... c5 {[%clk 0:02:57.3]} 6. dxc5 {[%clk 0:03:00.3]} 6... Nxc5 {[%clk
0:02:57.8]} 7. O-O-O {[%clk 0:02:55.8]} 7... Qa5 {[%clk 0:02:57.5]} 8. f3 {[%clk
0:02:54.6]} 8... Bxc3 {[%clk 0:02:51.4]} 9. Qxc3 {[%clk 0:02:52.5]} 9... Qxc3
{[%clk 0:02:51.8]} 10. bxc3 {[%clk 0:02:53.4]} 10... Be6 {[%clk 0:02:39.9]} 11.
a3 {[%clk 0:02:51.8]} 11... Rc8 {[%clk 0:02:40.2]} 12. h4 {[%clk 0:02:42]} 12...
h5 {[%clk 0:02:33.6]} 13. Nh3 {[%clk 0:02:35.9]} 13... Bd7 {[%clk 0:02:07.8]}
14. Nf4 {[%clk 0:02:32.6]} 14... Na4 {[%clk 0:01:41.4]} 15. c4 {[%clk
0:02:23.3]} 15... Nb6 {[%clk 0:01:32.6]} 16. Nd5 {[%clk 0:02:21.2]} 16... Nxc4
{[%clk 0:01:32.5]} 17. Bxc4 {[%clk 0:02:12.8]} 17... Rxc4 {[%clk 0:01:33]} 18.
Be3 {[%clk 0:01:54.9]} 18... Ba4 {[%clk 0:01:31.9]} 19. Rd2 {[%clk 0:01:49.8]}
19... b6 {[%clk 0:01:32]} 20. Bd4 {[%clk 0:01:46.9]} 20... f6 {[%clk 0:01:31.5]}
21. Ne3 {[%clk 0:01:42.4]} 21... Rc8 {[%clk 0:01:25.6]} 22. f4 {[%clk
0:01:41.7]} 22... Bc6 {[%clk 0:01:23.1]} 23. e5 {[%clk 0:01:40.3]} 23... dxe5
{[%clk 0:01:11.9]} 24. fxe5 {[%clk 0:01:41.2]} 24... f5 {[%clk 0:01:12.4]} 25.
e6 {[%clk 0:01:21.4]} 25... Nf6 {[%clk 0:01:12.6]} 26. Bxf6 {[%clk 0:01:16.6]}
26... exf6 {[%clk 0:01:13.5]} 27. Nc4 {[%clk 0:01:17.1]} 27... Ke7 {[%clk
0:01:13.8]} 28. Re1 {[%clk 0:01:13.9]} 28... Rhd8 {[%clk 0:01:11.8]} 29. Rf2
{[%clk 0:01:08.6]} 29... Be4 {[%clk 0:01:07.6]} 30. Ne3 {[%clk 0:01:07.7]} 30...
Kxe6 {[%clk 0:01:04.1]} 31. g4 {[%clk 0:01:07.9]} 31... hxg4 {[%clk 0:00:58.7]}
32. Nxg4 {[%clk 0:01:05.3]} 32... Rd4 {[%clk 0:00:51.8]} 33. Ne3 {[%clk
0:00:47.1]} 33... Kf7 {[%clk 0:00:48.4]} 34. h5 {[%clk 0:00:47.4]} 34... gxh5
{[%clk 0:00:36.1]} 35. Rf4 {[%clk 0:00:19.8]} 35... Rc5 {[%clk 0:00:27.4]} 36.
c4 {[%clk 0:00:17.4]} 36... Rd3 {[%clk 0:00:24.9]} 37. a4 {[%clk 0:00:12.7]}
37... a6 {[%clk 0:00:20.3]} 38. Kb2 {[%clk 0:00:10.6]} 38... b5 {[%clk 0:00:20]}
39. axb5 {[%clk 0:00:10.6]} 39... axb5 {[%clk 0:00:20.9]} 40. Re2 {[%clk
0:00:07.4]} 40... bxc4 {[%clk 0:00:20]} 41. Nc2 {[%clk 0:00:05.2]} 41... c3+
{[%clk 0:00:20.3]} 42. Kc1 {[%clk 0:00:05.1]} 42... Ra5 {[%clk 0:00:19.5]} 43.
Ref2 {[%clk 0:00:01.9]} 43... Ra2 {[%clk 0:00:16.6]} 0-1